[Event "*** Titled Tuesday 3|2 Blitz (Early)"]
[Site "Chess.com"]
[Date "2016.11.01"]
[Round "3"]
[White "Genghis_K"]
[Black "FlySooHigh"]
[Result "1-0"]
[WhiteElo "2651"]
[BlackElo "2421"]
[TimeControl "180+2"]
[EndTime "11:33:25 PDT"]
[Termination "Genghis_K won on time"]

1. e4 {[%clk 0:02:59.7]} 1... d5 {[%clk 0:03:00.5]} 2. exd5 {[%clk 0:03:00.8]}
2... Nf6 {[%clk 0:03:01.5]} 3. d4 {[%clk 0:03:01.5]} 3... Nxd5 {[%clk
0:03:02.3]} 4. Nf3 {[%clk 0:02:57.3]} 4... g6 {[%clk 0:03:02.9]} 5. c4 {[%clk
0:02:57]} 5... Nb6 {[%clk 0:03:03.7]} 6. Nc3 {[%clk 0:02:58.7]} 6... Bg7 {[%clk
0:03:04.1]} 7. a4 {[%clk 0:02:59.6]} 7... a5 {[%clk 0:02:56.9]} 8. c5 {[%clk
0:03:00.9]} 8... Nd5 {[%clk 0:02:57.6]} 9. Bc4 {[%clk 0:03:02]} 9... Nb4 {[%clk
0:02:35.8]} 10. h3 {[%clk 0:02:55]} 10... O-O {[%clk 0:02:36]} 11. O-O {[%clk
0:02:55.8]} 11... Bf5 {[%clk 0:02:29.2]} 12. Qe2 {[%clk 0:02:48.1]} 12... Nc2
{[%clk 0:02:02.5]} 13. g4 {[%clk 0:02:46]} 13... Nxa1 {[%clk 0:01:29.9]} 14.
gxf5 {[%clk 0:02:46.6]} 14... Nc6 {[%clk 0:01:28.5]} 15. Be3 {[%clk 0:02:39.1]}
15... gxf5 {[%clk 0:00:52.9]} 16. Rxa1 {[%clk 0:02:30.3]} 16... f4 {[%clk
0:00:51.4]} 17. Bxf4 {[%clk 0:02:31.2]} 17... Nxd4 {[%clk 0:00:52.4]} 18. Qe4
{[%clk 0:02:27.6]} 18... Nxf3+ {[%clk 0:00:41.7]} 19. Qxf3 {[%clk 0:02:29.5]}
19... Qd4 {[%clk 0:00:42.6]} 20. Bd3 {[%clk 0:02:20.2]} 20... Qxc5 {[%clk
0:00:40.3]} 21. Nd5 {[%clk 0:02:18.3]} 21... c6 {[%clk 0:00:36.9]} 22. Bxh7+
{[%clk 0:02:12]} 22... Kxh7 {[%clk 0:00:13.9]} 23. Qh5+ {[%clk 0:02:13.2]} 23...
Kg8 {[%clk 0:00:14.7]} 24. Nf6+ {[%clk 0:02:14.5]} 24... Bxf6 {[%clk 0:00:16.3]}
25. Qxc5 {[%clk 0:02:15.8]} 25... Rad8 {[%clk 0:00:15.3]} 26. Kh1 {[%clk
0:02:14.6]} 26... Rd5 {[%clk 0:00:15.8]} 27. Rg1+ {[%clk 0:02:15.4]} 27... Kh8
{[%clk 0:00:17.4]} 28. Qe3 {[%clk 0:02:16.7]} 28... Rg8 {[%clk 0:00:12.4]} 29.
Rxg8+ {[%clk 0:02:08]} 29... Kxg8 {[%clk 0:00:14.3]} 30. Qb3 {[%clk 0:02:08.9]}
30... b5 {[%clk 0:00:09.6]} 31. axb5 {[%clk 0:02:09.9]} 31... Rxb5 {[%clk
0:00:10.3]} 32. Qg3+ {[%clk 0:02:09.5]} 32... Kh8 {[%clk 0:00:09.4]} 33. Bc1
{[%clk 0:02:09.3]} 33... Rc5 {[%clk 0:00:07.1]} 34. Qe3 {[%clk 0:02:08.8]} 34...
Re5 {[%clk 0:00:06.8]} 35. Qh6+ {[%clk 0:02:09]} 35... Kg8 {[%clk 0:00:08.1]}
36. Kg2 {[%clk 0:02:09.8]} 36... Rb5 {[%clk 0:00:07.6]} 37. h4 {[%clk 0:02:08]}
37... Bxb2 {[%clk 0:00:05.9]} 38. Bxb2 {[%clk 0:02:07.2]} 38... Rxb2 {[%clk
0:00:07.8]} 39. Qg5+ {[%clk 0:02:08.7]} 39... Kh7 {[%clk 0:00:03.5]} 40. Qh5+
{[%clk 0:02:09.7]} 40... Kg8 {[%clk 0:00:04.2]} 41. Qg5+ {[%clk 0:02:09.2]}
41... Kh7 {[%clk 0:00:05.1]} 42. Qf5+ {[%clk 0:02:10.3]} 42... Kg8 {[%clk
0:00:05.4]} 43. h5 {[%clk 0:02:06.7]} 43... Rb5 {[%clk 0:00:05.4]} 44. Qc8+
{[%clk 0:02:00.8]} 44... Kg7 {[%clk 0:00:05.4]} 45. Qg4+ {[%clk 0:01:51.5]}
45... Kh8 {[%clk 0:00:04.3]} 46. h6 {[%clk 0:01:49.8]} 1-0

[Event "*** Titled Tuesday 3|2 Blitz (Early)"]
[Site "Chess.com"]
[Date "2016.11.01"]
[Round "3"]
[White "metalbattler"]
[Black "FearlessKing64"]
[Result "0-1"]
[WhiteElo "1983"]
[BlackElo "2157"]
[TimeControl "180+2"]
[EndTime "11:33:53 PDT"]
[Termination "FearlessKing64 won by checkmate"]

1. e4 {[%clk 0:02:49.4]} 1... c5 {[%clk 0:03:00.4]} 2. Nc3 {[%clk 0:02:46.3]}
2... d6 {[%clk 0:02:59.9]} 3. d4 {[%clk 0:02:45.8]} 3... cxd4 {[%clk 0:03:00.4]}
4. Qxd4 {[%clk 0:02:47.7]} 4... Nc6 {[%clk 0:02:53.2]} 5. Bb5 {[%clk 0:02:49.1]}
5... Bd7 {[%clk 0:02:54.7]} 6. Bxc6 {[%clk 0:02:50.2]} 6... Bxc6 {[%clk
0:02:54.4]} 7. Nf3 {[%clk 0:02:51.6]} 7... f5 {[%clk 0:02:44.4]} 8. Be3 {[%clk
0:02:31.1]} 8... e5 {[%clk 0:02:41.2]} 9. Qd3 {[%clk 0:02:29.7]} 9... f4 {[%clk
0:02:40.8]} 10. Bd2 {[%clk 0:02:24.4]} 10... Nf6 {[%clk 0:02:39.6]} 11. O-O-O
{[%clk 0:02:19.2]} 11... Be7 {[%clk 0:02:28.7]} 12. g3 {[%clk 0:02:20.5]} 12...
fxg3 {[%clk 0:02:20.1]} 13. fxg3 {[%clk 0:02:19.5]} 13... O-O {[%clk 0:02:15.7]}
14. Nh4 {[%clk 0:02:19.1]} 14... d5 {[%clk 0:02:01.8]} 15. exd5 {[%clk 0:02:09]}
15... Nxd5 {[%clk 0:02:02.2]} 16. Nxd5 {[%clk 0:01:59.4]} 16... Qxd5 {[%clk
0:01:46.4]} 17. Qxd5+ {[%clk 0:01:52]} 17... Bxd5 {[%clk 0:01:47]} 18. Rhe1
{[%clk 0:01:53.5]} 18... Bxh4 {[%clk 0:01:39.9]} 19. gxh4 {[%clk 0:01:55.4]}
19... Bf3 {[%clk 0:01:30.7]} 20. Bb4 {[%clk 0:01:51.3]} 20... Bxd1 {[%clk
0:01:17.4]} 21. Bxf8 {[%clk 0:01:49.9]} 21... Kxf8 {[%clk 0:01:16.1]} 22. Kxd1
{[%clk 0:01:49.4]} 22... Re8 {[%clk 0:01:17]} 23. Kd2 {[%clk 0:01:47.2]} 23...
Ke7 {[%clk 0:01:18.4]} 24. Rxe5+ {[%clk 0:01:47]} 24... Kf7 {[%clk 0:01:18.2]}
25. Rxe8 {[%clk 0:01:47.6]} 25... Kxe8 {[%clk 0:01:19.8]} 26. Ke3 {[%clk
0:01:47.5]} 26... Kf7 {[%clk 0:01:20.9]} 27. Kf4 {[%clk 0:01:48.1]} 27... Kg6
{[%clk 0:01:20.8]} 28. c4 {[%clk 0:01:46.2]} 28... Kh5 {[%clk 0:01:21.9]} 29.
Kg3 {[%clk 0:01:47.3]} 29... Kg6 {[%clk 0:01:20.7]} 30. Kg4 {[%clk 0:01:45.6]}
30... Kf6 {[%clk 0:01:18.2]} 31. Kf4 {[%clk 0:01:45.1]} 31... Kg6 {[%clk
0:01:17.9]} 32. b4 {[%clk 0:01:44]} 32... Kf6 {[%clk 0:01:18.8]} 33. c5 {[%clk
0:01:44.3]} 33... Ke6 {[%clk 0:01:20.1]} 34. Ke4 {[%clk 0:01:45.5]} 34... a6
{[%clk 0:01:18.1]} 35. a4 {[%clk 0:01:46.4]} 35... g6 {[%clk 0:01:19.3]} 36. b5
{[%clk 0:01:45.8]} 36... a5 {[%clk 0:01:14.2]} 37. Kf4 {[%clk 0:01:36.1]} 37...
h6 {[%clk 0:01:14.9]} 38. h3 {[%clk 0:01:35.2]} 38... Kd5 {[%clk 0:01:15.5]} 39.
c6 {[%clk 0:01:32.5]} 39... bxc6 {[%clk 0:01:16.6]} 40. bxc6 {[%clk 0:01:27]}
40... Kxc6 {[%clk 0:01:17.5]} 41. Ke5 {[%clk 0:01:28]} 41... Kc5 {[%clk
0:01:18]} 42. Kf6 {[%clk 0:01:28.7]} 42... Kb4 {[%clk 0:01:18]} 43. Kxg6 {[%clk
0:01:27.8]} 43... Kxa4 {[%clk 0:01:19.5]} 44. Kxh6 {[%clk 0:01:29.4]} 44... Kb3
{[%clk 0:01:15.8]} 45. Kg7 {[%clk 0:01:27.5]} 45... a4 {[%clk 0:01:17.3]} 46. h5
{[%clk 0:01:29.1]} 46... a3 {[%clk 0:01:18.9]} 47. h6 {[%clk 0:01:30.8]} 47...
a2 {[%clk 0:01:20.5]} 48. h7 {[%clk 0:01:32.4]} 48... a1=Q+ {[%clk 0:01:22.1]}
49. Kg8 {[%clk 0:01:33.9]} 49... Qa8+ {[%clk 0:01:21.4]} 50. Kg7 {[%clk
0:01:34.9]} 50... Qb7+ {[%clk 0:01:22.7]} 51. Kg8 {[%clk 0:01:36.1]} 51... Qc8+
{[%clk 0:01:24.1]} 52. Kg7 {[%clk 0:01:37.8]} 52... Qd7+ {[%clk 0:01:25.4]} 53.
Kg8 {[%clk 0:01:39.5]} 53... Qe8+ {[%clk 0:01:26.6]} 54. Kg7 {[%clk 0:01:41.1]}
54... Qe5+ {[%clk 0:01:27.5]} 55. Kg8 {[%clk 0:01:40]} 55... Qg5+ {[%clk
0:01:28.6]} 56. Kh8 {[%clk 0:01:37.8]} 56... Qf6+ {[%clk 0:01:26.4]} 57. Kg8
{[%clk 0:01:38.2]} 57... Qg6+ {[%clk 0:01:26.1]} 58. Kh8 {[%clk 0:01:37.2]}
58... Kc4 {[%clk 0:01:27.1]} 59. h4 {[%clk 0:01:38.7]} 59... Kd5 {[%clk
0:01:25.7]} 60. h5 {[%clk 0:01:40.2]} 60... Qf6+ {[%clk 0:01:24.4]} 61. Kg8
{[%clk 0:01:41.3]} 61... Qg5+ {[%clk 0:01:25.3]} 62. Kh8 {[%clk 0:01:41.5]}
62... Ke6 {[%clk 0:01:20.2]} 63. h6 {[%clk 0:01:42.1]} 63... Qf6+ {[%clk
0:00:59.9]} 64. Kg8 {[%clk 0:01:43.4]} 64... Qf7+ {[%clk 0:01:00.6]} 65. Kh8
{[%clk 0:01:43.1]} 65... Qf8# {[%clk 0:01:01.2]} 0-1

[Event "*** Titled Tuesday 3|2 Blitz (Early)"]
[Site "Chess.com"]
[Date "2016.11.01"]
[Round "3"]
[White "KuzubovYuriy"]
[Black "GMBenjaminBok"]
[Result "0-1"]
[WhiteElo "2543"]
[BlackElo "2609"]
[TimeControl "180+2"]
[EndTime "11:34:16 PDT"]
[Termination "GMBenjaminBok won by resignation"]

1. d4 {[%clk 0:03:02]} 1... Nf6 {[%clk 0:03:00.9]} 2. c4 {[%clk 0:03:01.9]} 2...
g6 {[%clk 0:03:02.4]} 3. Nc3 {[%clk 0:03:02.1]} 3... d5 {[%clk 0:03:02.6]} 4.
Bg5 {[%clk 0:03:02.3]} 4... Ne4 {[%clk 0:03:02.3]} 5. Bh4 {[%clk 0:03:02.3]}
5... Nxc3 {[%clk 0:03:03.4]} 6. bxc3 {[%clk 0:03:02.6]} 6... dxc4 {[%clk
0:03:05.3]} 7. e3 {[%clk 0:03:01.9]} 7... Be6 {[%clk 0:03:06.4]} 8. Nf3 {[%clk
0:03:02.3]} 8... Bg7 {[%clk 0:03:07.4]} 9. Rb1 {[%clk 0:03:01.1]} 9... b6 {[%clk
0:02:35.6]} 10. Qc2 {[%clk 0:03:00.2]} 10... O-O {[%clk 0:02:29.9]} 11. Be2
{[%clk 0:02:53.5]} 11... c5 {[%clk 0:02:27.5]} 12. O-O {[%clk 0:02:53.5]} 12...
Nc6 {[%clk 0:02:24.9]} 13. Ng5 {[%clk 0:02:27.8]} 13... Bf5 {[%clk 0:02:10.4]}
14. e4 {[%clk 0:02:26.9]} 14... Bd7 {[%clk 0:02:08.1]} 15. dxc5 {[%clk
0:02:17.5]} 15... Ne5 {[%clk 0:02:00.4]} 16. Rfd1 {[%clk 0:02:11.7]} 16... Qc7
{[%clk 0:02:00.7]} 17. cxb6 {[%clk 0:02:04.4]} 17... axb6 {[%clk 0:02:01.8]} 18.
Nf3 {[%clk 0:02:04.5]} 18... Ba4 {[%clk 0:02:00.8]} 19. Qb2 {[%clk 0:01:56.7]}
19... Bxd1 {[%clk 0:01:59.9]} 20. Rxd1 {[%clk 0:01:57]} 20... Nxf3+ {[%clk
0:01:58]} 21. gxf3 {[%clk 0:01:56.5]} 21... Rfd8 {[%clk 0:01:55.7]} 22. Rb1
{[%clk 0:01:53.9]} 22... b5 {[%clk 0:01:31.6]} 23. Bg3 {[%clk 0:01:49]} 23...
Be5 {[%clk 0:01:30.1]} 24. Bxe5 {[%clk 0:01:30.4]} 24... Qxe5 {[%clk 0:01:32]}
25. Qxb5 {[%clk 0:01:31.3]} 25... Qxb5 {[%clk 0:00:50.7]} 26. Rxb5 {[%clk
0:01:30.5]} 26... Rxa2 {[%clk 0:00:47]} 27. Bxc4 {[%clk 0:01:31.1]} 27... Rc2
{[%clk 0:00:47.5]} 28. e5 {[%clk 0:01:22.6]} 28... Rxc3 {[%clk 0:00:42.8]} 29.
Bd5 {[%clk 0:01:23.1]} 29... e6 {[%clk 0:00:35.9]} 30. Be4 {[%clk 0:01:24]}
30... Rdc8 {[%clk 0:00:36.7]} 31. Kg2 {[%clk 0:01:17.6]} 31... R8c5 {[%clk
0:00:36.9]} 32. Rxc5 {[%clk 0:01:16]} 32... Rxc5 {[%clk 0:00:35.4]} 33. f4
{[%clk 0:01:17.9]} 33... Kg7 {[%clk 0:00:34.9]} 34. Kg3 {[%clk 0:01:18.3]} 34...
h6 {[%clk 0:00:31.3]} 35. h4 {[%clk 0:01:18.4]} 35... Rc3+ {[%clk 0:00:30.9]}
36. Kg2 {[%clk 0:01:17.7]} 36... Ra3 {[%clk 0:00:29.3]} 37. Bf3 {[%clk
0:01:17.4]} 37... g5 {[%clk 0:00:23.9]} 38. fxg5 {[%clk 0:01:16.1]} 38... hxg5
{[%clk 0:00:24.7]} 39. hxg5 {[%clk 0:01:16.5]} 39... Kg6 {[%clk 0:00:26]} 40.
Bc6 {[%clk 0:01:17]} 40... Kxg5 {[%clk 0:00:26]} 41. Be8 {[%clk 0:01:18]} 41...
Ra7 {[%clk 0:00:20.7]} 42. Kg3 {[%clk 0:01:17.8]} 42... Kf5 {[%clk 0:00:21.4]}
43. f4 {[%clk 0:01:17]} 43... Ra3+ {[%clk 0:00:22]} 44. Kg2 {[%clk 0:01:17.4]}
44... Kxf4 {[%clk 0:00:23.4]} 45. Bxf7 {[%clk 0:01:18.3]} 45... Kxe5 {[%clk
0:00:24.9]} 46. Kf2 {[%clk 0:01:19.3]} 46... Kf5 {[%clk 0:00:25.9]} 47. Ke2
{[%clk 0:01:20]} 47... e5 {[%clk 0:00:27.2]} 48. Bg8 {[%clk 0:01:21.1]} 48...
Kf4 {[%clk 0:00:28.5]} 49. Bh7 {[%clk 0:01:21]} 49... e4 {[%clk 0:00:29.5]} 50.
Bg6 {[%clk 0:01:21.4]} 50... Ra2+ {[%clk 0:00:30.3]} 51. Ke1 {[%clk 0:01:21.9]}
51... Rh2 {[%clk 0:00:30.2]} 52. Be8 {[%clk 0:01:22.2]} 52... Ke3 {[%clk
0:00:30.9]} 53. Kf1 {[%clk 0:01:22.5]} 53... Rh1+ {[%clk 0:00:31.8]} 54. Kg2
{[%clk 0:01:23.4]} 54... Rh8 {[%clk 0:00:33.4]} 55. Bc6 {[%clk 0:01:24.1]} 55...
Rf8 {[%clk 0:00:34.3]} 0-1

[Event "*** Titled Tuesday 3|2 Blitz (Early)"]
[Site "Chess.com"]
[Date "2016.11.01"]
[Round "3"]
[White "KyronGriffith"]
[Black "Jahonas"]
[Result "1/2-1/2"]
[WhiteElo "2343"]
[BlackElo "2166"]
[TimeControl "180+2"]
[EndTime "11:34:24 PDT"]
[Termination "Game drawn by repetition"]

1. d4 {[%clk 0:03:02]} 1... Nf6 {[%clk 0:02:59.4]} 2. Nf3 {[%clk 0:03:03.2]}
2... c6 {[%clk 0:02:41.4]} 3. Bg5 {[%clk 0:02:57.3]} 3... d5 {[%clk 0:02:37.1]}
4. Bxf6 {[%clk 0:02:47.4]} 4... exf6 {[%clk 0:02:35.3]} 5. c3 {[%clk 0:02:43.1]}
5... Bd6 {[%clk 0:02:35.5]} 6. g3 {[%clk 0:02:31.5]} 6... O-O {[%clk 0:02:33]}
7. Bg2 {[%clk 0:02:32.1]} 7... Re8 {[%clk 0:02:27]} 8. O-O {[%clk 0:02:32.1]}
8... f5 {[%clk 0:02:21.6]} 9. e3 {[%clk 0:02:32.6]} 9... Be6 {[%clk 0:02:21.4]}
10. Nbd2 {[%clk 0:02:29.2]} 10... Nd7 {[%clk 0:02:22.3]} 11. Ne1 {[%clk
0:02:29]} 11... a5 {[%clk 0:02:22.7]} 12. Nd3 {[%clk 0:02:29.5]} 12... b5 {[%clk
0:02:23.1]} 13. Qc2 {[%clk 0:01:59.7]} 13... a4 {[%clk 0:02:21.3]} 14. b3 {[%clk
0:01:53]} 14... Qa5 {[%clk 0:02:18.5]} 15. c4 {[%clk 0:01:48.6]} 15... axb3
{[%clk 0:02:14.9]} 16. Nxb3 {[%clk 0:01:48.7]} 16... Qa4 {[%clk 0:02:11.7]} 17.
cxb5 {[%clk 0:01:33.7]} 17... cxb5 {[%clk 0:02:09.1]} 18. Rfc1 {[%clk
0:01:26.1]} 18... Nb6 {[%clk 0:01:55.1]} 19. Ndc5 {[%clk 0:01:06.4]} 19... Qa7
{[%clk 0:01:40.3]} 20. Qe2 {[%clk 0:00:48.7]} 20... Nc4 {[%clk 0:01:39.4]} 21.
h4 {[%clk 0:00:47.8]} 21... g6 {[%clk 0:01:35.1]} 22. Nd3 {[%clk 0:00:46.5]}
22... Rec8 {[%clk 0:01:32.7]} 23. h5 {[%clk 0:00:46.4]} 23... Ba3 {[%clk
0:01:31]} 24. Rf1 {[%clk 0:00:37.4]} 24... Bf8 {[%clk 0:01:29]} 25. Nbc5 {[%clk
0:00:37.6]} 25... Rc7 {[%clk 0:01:26.9]} 26. Rfb1 {[%clk 0:00:34.3]} 26... Rb8
{[%clk 0:01:24]} 27. a4 {[%clk 0:00:28.7]} 27... bxa4 {[%clk 0:01:22.2]} 28.
Rxb8 {[%clk 0:00:30.4]} 28... Qxb8 {[%clk 0:01:21.2]} 29. Na6 {[%clk 0:00:32]}
29... Qa7 {[%clk 0:01:12.4]} 30. Nxc7 {[%clk 0:00:33.1]} 30... Qxc7 {[%clk
0:01:14.3]} 31. Rxa4 {[%clk 0:00:33.9]} 31... Kg7 {[%clk 0:01:14.1]} 32. hxg6
{[%clk 0:00:32.1]} 32... hxg6 {[%clk 0:01:14.8]} 33. Qa2 {[%clk 0:00:33.1]}
33... Bd6 {[%clk 0:01:01.4]} 34. Ra7 {[%clk 0:00:33.4]} 34... Qb8 {[%clk
0:01:02.1]} 35. Nf4 {[%clk 0:00:30.8]} 35... Bxf4 {[%clk 0:01:02.2]} 36. gxf4
{[%clk 0:00:32.7]} 36... Qb4 {[%clk 0:01:02.8]} 37. Qa1 {[%clk 0:00:30.1]} 37...
Qd2 {[%clk 0:01:02.4]} 38. Ra2 {[%clk 0:00:29.9]} 38... Qb4 {[%clk 0:01:00.9]}
39. Rc2 {[%clk 0:00:29.1]} 39... Qe7 {[%clk 0:01:01.5]} 40. Rc1 {[%clk
0:00:28.6]} 40... Qh4 {[%clk 0:01:02.3]} 41. Qa8 {[%clk 0:00:24.9]} 41... Qg4
{[%clk 0:00:53.3]} 42. Qa2 {[%clk 0:00:21.3]} 42... Nd6 {[%clk 0:00:51.3]} 43.
Kf1 {[%clk 0:00:20.1]} 43... Ne4 {[%clk 0:00:48.1]} 44. Qe2 {[%clk 0:00:18.8]}
44... Qh4 {[%clk 0:00:48.5]} 45. Bxe4 {[%clk 0:00:14.6]} 45... fxe4 {[%clk
0:00:49.5]} 46. Ke1 {[%clk 0:00:15.3]} 46... Bg4 {[%clk 0:00:49.5]} 47. Qf1
{[%clk 0:00:16.6]} 47... Bf3 {[%clk 0:00:49.3]} 48. Kd2 {[%clk 0:00:17.5]} 48...
Qe7 {[%clk 0:00:50]} 49. Rc3 {[%clk 0:00:17.7]} 49... Qb4 {[%clk 0:00:50.6]} 50.
Qc1 {[%clk 0:00:19]} 50... Qb5 {[%clk 0:00:50.5]} 51. Qe1 {[%clk 0:00:19.5]}
51... Qb2+ {[%clk 0:00:51.2]} 52. Rc2 {[%clk 0:00:18.3]} 52... Qb4+ {[%clk
0:00:52.5]} 53. Rc3 {[%clk 0:00:19.9]} 53... Qb2+ {[%clk 0:00:53.7]} 54. Rc2
{[%clk 0:00:21.6]} 54... Qb4+ {[%clk 0:00:55]} 55. Rc3 {[%clk 0:00:23.1]} 55...
Qb2+ {[%clk 0:00:56.4]} 56. Rc2 {[%clk 0:00:24.5]} 56... Qb4+ {[%clk 0:00:57.8]}
57. Rc3 {[%clk 0:00:25.9]} 1/2-1/2

[Event "*** Titled Tuesday 3|2 Blitz (Early)"]
[Site "Chess.com"]
[Date "2016.11.01"]
[Round "3"]
[White "Wolverine_master"]
[Black "saraswathii"]
[Result "0-1"]
[WhiteElo "2050"]
[BlackElo "2150"]
[TimeControl "180+2"]
[EndTime "11:34:28 PDT"]
[Termination "saraswathii won by checkmate"]

1. e4 {[%clk 0:03:01.9]} 1... c5 {[%clk 0:03:00]} 2. Nf3 {[%clk 0:03:02.4]} 2...
e6 {[%clk 0:03:00.8]} 3. d4 {[%clk 0:03:03.8]} 3... cxd4 {[%clk 0:03:01.2]} 4.
Nxd4 {[%clk 0:03:04.3]} 4... Nf6 {[%clk 0:03:02.2]} 5. Bd3 {[%clk 0:03:05]} 5...
Nc6 {[%clk 0:03:02.1]} 6. Be3 {[%clk 0:03:03.1]} 6... d5 {[%clk 0:02:53.9]} 7.
Nxc6 {[%clk 0:02:54.7]} 7... bxc6 {[%clk 0:02:54]} 8. e5 {[%clk 0:02:43]} 8...
Nd7 {[%clk 0:02:53.9]} 9. f4 {[%clk 0:02:43.3]} 9... c5 {[%clk 0:02:50.4]} 10.
c3 {[%clk 0:02:42.8]} 10... Bb7 {[%clk 0:02:41]} 11. O-O {[%clk 0:02:43]} 11...
f6 {[%clk 0:02:35.5]} 12. exf6 {[%clk 0:02:39.2]} 12... Qxf6 {[%clk 0:02:35.1]}
13. Bb5 {[%clk 0:01:58]} 13... a6 {[%clk 0:02:21.9]} 14. Bxd7+ {[%clk
0:01:42.9]} 14... Kxd7 {[%clk 0:02:23.8]} 15. Nd2 {[%clk 0:01:44.2]} 15... Bd6
{[%clk 0:02:19.6]} 16. Nb3 {[%clk 0:01:05.7]} 16... Rac8 {[%clk 0:02:15.3]} 17.
Qe2 {[%clk 0:00:33.3]} 17... Rhe8 {[%clk 0:01:59.9]} 18. Qf2 {[%clk 0:00:32.6]}
18... Qf8 {[%clk 0:01:42.3]} 19. Rad1 {[%clk 0:00:30]} 19... Rc7 {[%clk
0:01:40.6]} 20. Na5 {[%clk 0:00:26.6]} 20... Ba8 {[%clk 0:01:40]} 21. Qh4 {[%clk
0:00:14.3]} 21... Qf5 {[%clk 0:01:39.2]} 22. g4 {[%clk 0:00:13.2]} 22... Qe4
{[%clk 0:01:39.5]} 23. Qf2 {[%clk 0:00:11.2]} 23... d4 {[%clk 0:01:38.4]} 24.
Qf3 {[%clk 0:00:08.6]} 24... Qxf3 {[%clk 0:01:38.7]} 25. Rxf3 {[%clk 0:00:09.8]}
25... Bxf3 {[%clk 0:01:40.4]} 26. Rf1 {[%clk 0:00:10.8]} 26... dxe3 {[%clk
0:01:35.5]} 27. Rxf3 {[%clk 0:00:11.5]} 27... e2 {[%clk 0:01:36.6]} 28. Kf2
{[%clk 0:00:11.7]} 28... Rf8 {[%clk 0:01:36]} 29. Kxe2 {[%clk 0:00:11.9]} 29...
Rxf4 {[%clk 0:01:36.6]} 30. Rd3 {[%clk 0:00:13]} 30... Rxg4 {[%clk 0:01:35]} 31.
b3 {[%clk 0:00:14.3]} 31... Ke7 {[%clk 0:01:33.7]} 32. h3 {[%clk 0:00:13.3]}
32... Rg3 {[%clk 0:01:33.5]} 33. Rd1 {[%clk 0:00:11.9]} 33... Rxc3 {[%clk
0:01:34.1]} 34. Nc4 {[%clk 0:00:12.4]} 34... Rd7 {[%clk 0:01:33.8]} 35. Rg1
{[%clk 0:00:12.6]} 35... Rg3 {[%clk 0:01:32.2]} 36. Rf1 {[%clk 0:00:13]} 36...
Rxh3 {[%clk 0:01:31.3]} 37. a4 {[%clk 0:00:11.7]} 37... Rxb3 {[%clk 0:01:30.6]}
38. a5 {[%clk 0:00:12.1]} 38... Bc7 {[%clk 0:01:31.2]} 39. Rg1 {[%clk 0:00:12]}
39... g6 {[%clk 0:01:31.5]} 40. Rh1 {[%clk 0:00:12.9]} 40... h5 {[%clk
0:01:31.7]} 41. Rg1 {[%clk 0:00:14.1]} 41... Rg3 {[%clk 0:01:32.1]} 42. Rf1
{[%clk 0:00:09.1]} 42... h4 {[%clk 0:01:32.6]} 43. Nd2 {[%clk 0:00:07.4]} 43...
Rg2+ {[%clk 0:01:32.7]} 44. Ke3 {[%clk 0:00:06.4]} 44... Rdxd2 {[%clk
0:01:30.3]} 45. Ke4 {[%clk 0:00:06.8]} 45... Rge2+ {[%clk 0:01:30.3]} 46. Kf3
{[%clk 0:00:06.1]} 46... h3 {[%clk 0:01:31.1]} 47. Rh1 {[%clk 0:00:05.4]} 47...
h2 {[%clk 0:01:31.1]} 48. Kg4 {[%clk 0:00:04.4]} 48... Rg2+ {[%clk 0:01:30.4]}
49. Kh3 {[%clk 0:00:04.5]} 49... Rg3+ {[%clk 0:01:29.4]} 50. Kh4 {[%clk
0:00:05.5]} 50... Rd4# {[%clk 0:01:30.5]} 0-1

[Event "*** Titled Tuesday 3|2 Blitz (Early)"]
[Site "Chess.com"]
[Date "2016.11.01"]
[Round "3"]
[White "MFBerna"]
[Black "Akshayraj_Kore"]
[Result "1-0"]
[WhiteElo "2187"]
[BlackElo "2296"]
[TimeControl "180+2"]
[EndTime "11:34:29 PDT"]
[Termination "MFBerna won on time"]

1. e4 {[%clk 0:03:02]} 1... e5 {[%clk 0:03:01]} 2. Nf3 {[%clk 0:03:03.3]} 2...
Nc6 {[%clk 0:03:02.3]} 3. Bb5 {[%clk 0:03:04.7]} 3... a6 {[%clk 0:03:03.6]} 4.
Ba4 {[%clk 0:03:06.2]} 4... Nf6 {[%clk 0:03:04.8]} 5. O-O {[%clk 0:03:07.6]}
5... Be7 {[%clk 0:03:06.2]} 6. Re1 {[%clk 0:03:08.8]} 6... b5 {[%clk 0:03:07.3]}
7. Bb3 {[%clk 0:03:10.3]} 7... d6 {[%clk 0:03:07.3]} 8. c3 {[%clk 0:03:11.5]}
8... O-O {[%clk 0:03:08.6]} 9. h3 {[%clk 0:03:13.1]} 9... a5 {[%clk 0:03:04.3]}
10. d4 {[%clk 0:03:12.2]} 10... a4 {[%clk 0:03:04.6]} 11. Bc2 {[%clk 0:03:12.5]}
11... Bb7 {[%clk 0:02:54.2]} 12. Nbd2 {[%clk 0:03:08.3]} 12... Re8 {[%clk
0:02:54.6]} 13. Nf1 {[%clk 0:03:08.2]} 13... Bf8 {[%clk 0:02:55.2]} 14. Ng3
{[%clk 0:03:05]} 14... g6 {[%clk 0:02:53.4]} 15. Bd3 {[%clk 0:02:46.2]} 15... b4
{[%clk 0:02:39.2]} 16. Bb5 {[%clk 0:02:45.4]} 16... Nd7 {[%clk 0:02:06.9]} 17.
d5 {[%clk 0:02:36.9]} 17... Ne7 {[%clk 0:01:21.1]} 18. cxb4 {[%clk 0:02:36.1]}
18... c6 {[%clk 0:01:07.5]} 19. dxc6 {[%clk 0:02:24.4]} 19... Nxc6 {[%clk
0:01:08.2]} 20. Bxa4 {[%clk 0:01:37.4]} 20... Nxb4 {[%clk 0:01:08.4]} 21. Bg5
{[%clk 0:01:26.3]} 21... Be7 {[%clk 0:01:00.6]} 22. Bxe7 {[%clk 0:01:17.3]}
22... Qxe7 {[%clk 0:01:01.2]} 23. a3 {[%clk 0:00:58.5]} 23... Nc6 {[%clk
0:00:50.8]} 24. Rc1 {[%clk 0:00:58.4]} 24... Rec8 {[%clk 0:00:47.9]} 25. Bc2
{[%clk 0:00:38.5]} 25... Nc5 {[%clk 0:00:45.8]} 26. Qd2 {[%clk 0:00:27.5]} 26...
Na5 {[%clk 0:00:43.2]} 27. b4 {[%clk 0:00:17.5]} 27... Nc4 {[%clk 0:00:32.2]}
28. Qh6 {[%clk 0:00:18.5]} 28... Ne6 {[%clk 0:00:30.9]} 29. Bb3 {[%clk
0:00:12.2]} 29... Nxa3 {[%clk 0:00:30.3]} 30. Rxc8+ {[%clk 0:00:09.9]} 30...
Rxc8 {[%clk 0:00:29.7]} 31. Nf5 {[%clk 0:00:10.7]} 31... gxf5 {[%clk 0:00:26.8]}
32. exf5 {[%clk 0:00:12.6]} 32... Qf8 {[%clk 0:00:27]} 33. Qh4 {[%clk
0:00:02.9]} 33... Nf4 {[%clk 0:00:13]} 34. Ng5 {[%clk 0:00:03.9]} 34... Qg7
{[%clk 0:00:11.7]} 35. Bxf7+ {[%clk 0:00:03.1]} 35... Kh8 {[%clk 0:00:12.8]} 36.
f6 {[%clk 0:00:04.1]} 36... Nxh3+ {[%clk 0:00:05.3]} 37. gxh3 {[%clk 0:00:03.8]}
37... Qxg5+ {[%clk 0:00:02.8]} 38. Qxg5 {[%clk 0:00:04.8]} 1-0